bitfinex/quotes_ETHUSD_20250630
["timestamp","ask_amount","ask_price","bid_price","bid_amount"]
[1751313760752,0.1984,2511.9,2511.5,0.1984]
[1751313761153,3.98108321,2511.9,2511.2,13.98207415]
[1751313761397,0.1984,2511.5,2511.2,3.98207415]
[1751313761597,0.1984,2511.5,2511.1,0.2084]
[1751313761774,0.1984,2511.2,2511.1,0.01]
[1751313762291,4.18055992,2511.2,2511.1,0.0293]
[1751313762452,5.91151877,2511.2,2511.1,0.0293]
[1751313764584,6.20443943,2511.7,2511.2,3.98207746]
[1751313764878,0.1984,2511.5,2511.2,3.98214639]
[1751313765078,0.02,2511.3,2511.1,0.2277]
[1751313765280,0.02,2511.3,2511.2,0.94077404]
[1751313765662,0.02,2511.3,2511.2,4.92293396]
[1751313765883,0.02,2511.3,2511.2,3.98215992]
[1751313766072,0.02,2511.3,2511.1,4.01154088]
[1751313766257,0.02,2511.3,2511.2,3.98215992]
[1751313767278,0.02,2511.3,2511.2,4.92397587]
[1751313767479,0.02,2511.3,2511.2,0.94181595]
[1751313767681,0.02,2511.3,2511.2,4.92397587]
[1751313767867,0.02,2511.3,2511.2,5.83931455]
[1751313768274,0.02,2511.3,2511.2,7.01723184]
[1751313769153,0.02,2511.3,2511.2,5.83931455]
[1751313770059,0.02,2511.3,2511.2,4.92397587]
[1751313770265,0.02,2511.3,2511.2,6.1025875]
[1751313771174,0.02,2511.3,2511.2,4.92397587]
[1751313771370,0.02,2511.3,2511.2,6.10311437]
[1751313772092,0.02,2511.3,2511.2,4.92397587]
[1751313772274,0.02,2511.3,2511.2,6.10311437]
[1751313773481,0.02,2511.3,2511.2,2.12095445]
[1751313773991,0.02,2511.3,2511.2,6.10311437]
[1751313774767,0.02,2511.3,2511.2,2.12095445]
[1751313775163,0.02,2511.3,2511.2,6.10311437]
[1751313777206,0.02,2511.3,2511.2,4.92397587]
[1751313778109,0.02,2511.3,2511.2,0.94181595]
[1751313778312,4.75300135,2511.3,2511.2,0.94181595]
[1751313778480,5.82487586,2511.3,2511.2,0.94181595]
[1751313779111,5.82487586,2511.3,2511.1,0.01]
[1751313779287,5.82494373,2511.3,2511.1,0.01]
[1751313779490,1.84287451,2511.3,2511.2,0.94458623]
[1751313780118,5.62647586,2511.3,2511.2,0.94458623]
[1751313780279,1.64447451,2511.3,2511.2,0.94458623]
[1751313780894,5.62647586,2511.3,2511.2,0.94458623]
[1751313781221,0.771,2511.3,2511.2,0.94464246]
[1751313782283,4.75300135,2511.3,2511.2,0.94464246]
[1751313782617,3.98215992,2511.2,2511.1,0.01]
[1751313782918,3.98215992,2511.2,2511.1,0.95488688]
[1751313783217,5.07787605,2511.2,2511.1,0.95488688]
[1751313784306,5.07787605,2511.2,2511.1,0.01]
[1751313785002,1.09571613,2511.2,2511.1,0.01]
[1751313785206,0.02,2511.3,2511.1,0.9551]
[1751313785407,0.02,2511.3,2511.1,0.01]
[1751313785612,0.02,2511.3,2511.2,0.94497089]
[1751313785787,4.00200135,2511.3,2511.2,0.94497089]
[1751313786917,3.98215992,2511.2,2511.1,0.0293]
[1751313787133,4.78057605,2511.2,2511.1,0.0293]
[1751313787293,4.78057605,2511.2,2511.1,0.97427482]
[1751313787493,4.78057605,2511.2,2511.1,0.0293]
[1751313789490,0.79841613,2511.2,2511.1,0.0387]
[1751313790217,4.78057605,2511.2,2511.1,0.0387]
[1751313790418,0.79841613,2511.2,2511.1,0.0387]
[1751313790628,0.02,2511.3,2511.1,4.02101532]
[1751313790931,0.1984,2511.2,2511.1,0.0387]
[1751313791089,0.1984,2511.2,2511.1,4.96514764]
[1751313791288,0.02,2511.3,2511.2,3.98215992]
[1751313791592,0.02,2511.3,2511.2,4.92624624]
[1751313794019,0.02,2511.3,2511.2,5.95789891]
[1751313794196,0.02,2511.3,2511.2,7.33646091]
[1751313794927,0.02,2511.3,2511.2,6.15629891]
[1751313795137,0.02,2511.3,2511.2,12.97129891]
[1751313795292,0.02,2511.3,2511.2,14.54139629]
[1751313795631,0.02,2511.3,2511.2,13.50974362]
[1751313795787,0.02,2511.3,2511.2,11.93964624]
[1751313796725,0.02,2511.3,2511.2,0.94408632]
[1751313799335,4.00200135,2511.3,2511.2,0.94408632]
[1751313799829,14.80630135,2511.3,2511.2,0.94408632]
[1751313800029,16.68511673,2511.3,2511.2,0.94408632]
[1751313800736,3.98215992,2511.2,2511.1,0.01]
[1751313800921,3.98215992,2511.2,2511.1,0.95452136]
[1751313801122,15.33645992,2511.2,2511.1,0.01]
[1751313801438,15.3366185,2511.1,2511.0,0.01]
[1751313801745,15.3366185,2511.1,2510.8,0.01]
[1751313801746,14.5326357,2510.9,2510.8,0.01]
[1751313801952,24.3209357,2510.9,2510.8,0.01]
[1751313802239,24.3209357,2510.9,2510.1,0.01]
[1751313802240,14.53374631,2510.2,2510.1,0.01]
[1751313802446,24.32404631,2510.2,2510.1,0.01]
[1751313802817,14.78804631,2510.2,2510.1,0.01]
[1751313803133,3.98422247,2509.9,2509.8,0.1743652]
[1751313803333,3.98414791,2510.0,2509.8,0.1743652]
[1751313803903,0.8043,2510.2,2509.8,0.1743652]
[1751313804117,2.172,2510.4,2509.8,4.15873249]
[1751313804305,2.172,2510.4,2510.0,3.98404477]
[1751313804710,2.172,2510.4,2510.1,3.98382781]
[1751313804908,2.172,2510.7,2510.2,3.98364543]
[1751313805126,8.998,2510.7,2510.3,3.98349593]
[1751313805450,6.1546582,2510.9,2510.4,3.98334281]
[1751313805655,7.85085851,2510.9,2510.4,3.98334281]
[1751313806209,7.85085851,2510.9,2510.0,0.81427773]
[1751313806210,3.86820031,2510.9,2510.5,3.98326356]
[1751313806411,7.85085779,2510.9,2510.4,3.98336553]
[1751313806609,0.1984,2510.7,2510.3,4.18192625]
[1751313807041,0.1984,2510.7,2510.4,3.98341388]
[1751313807243,0.1984,2510.7,2510.3,4.18198398]
[1751313807603,0.1984,2510.7,2510.4,3.9833567]
[1751313807834,0.1984,2510.7,2510.5,3.9831813]
[1751313808038,2.172,2510.9,2510.5,3.9831813]
[1751313808039,2.172,2510.9,2510.7,3.98295296]
[1751313808262,2.172,2510.9,2510.6,0.1984]
[1751313808595,3.98249152,2511.0,2510.6,0.1984]
[1751313808770,0.1984,2510.9,2510.5,3.98321287]
[1751313808949,0.1984,2510.9,2510.5,3.98319227]
[1751313809470,0.1984,2510.9,2510.6,3.98308441]
[1751313809669,0.1984,2510.9,2510.7,3.9828398]
[1751313810170,0.1984,2510.9,2510.6,3.98302099]
[1751313810372,0.1984,2510.9,2510.5,3.98318319]
[1751313810580,0.1984,2510.9,2510.4,4.18172979]
[1751313810581,0.8101,2510.8,2510.4,0.1984]
[1751313810871,0.1984,2510.9,2510.6,3.98297039]
[1751313811068,0.1984,2510.9,2510.5,3.99262602]
[1751313811263,0.1984,2510.9,2510.6,3.9831116]
[1751313811784,0.1984,2510.9,2510.5,3.99262602]
[1751313811785,0.1984,2510.9,2510.5,0.0094]
[1751313811997,4.18106876,2510.9,2510.5,0.0094]
[1751313812158,4.18106876,2510.9,2510.5,0.0287]
[1751313812674,3.98292651,2510.8,2510.5,0.0287]
[1751313812873,0.1984,2510.7,2510.5,0.0287]
[1751313813078,3.98285112,2510.8,2510.5,0.0287]
[1751313813384,4.7932116,2510.6,2510.5,0.0287]
[1751313813885,0.8101,2510.6,2510.5,0.0287]
[1751313814410,4.7932116,2510.6,2510.5,0.0287]
[1751313814552,5.88801675,2510.6,2510.5,0.0287]
[1751313815176,1.90490515,2510.6,2510.5,0.0287]
[1751313815698,9.566,2511.4,2510.5,4.01186243]
[1751313815901,9.566,2511.4,2510.6,3.98309126]
[1751313815902,0.1984,2510.7,2510.6,3.98309126]
[1751313816089,0.1984,2510.9,2510.8,3.98272656]
[1751313816602,6.35274019,2511.1,2510.6,4.18137688]
[1751313817095,6.35274019,2511.1,2510.7,3.98294118]
[1751313817296,2.3704,2511.1,2510.7,3.98294804]
[1751313817498,2.3704,2511.1,2510.7,3.98288902]
[1751313817795,2.3704,2511.1,2510.7,3.9829025]
[1751313817998,2.3704,2511.1,2510.8,3.98278056]
[1751313819492,2.3704,2511.1,2510.7,3.98285754]
[1751313819709,2.3704,2511.1,2510.6,4.18138935]
[1751313819877,2.3704,2511.1,2510.6,0.1984]
[1751313819878,3.98275533,2510.9,2510.6,0.1984]
[1751313820202,0.1984,2510.8,2510.5,0.0287]
[1751313820371,3.98286653,2510.8,2510.5,0.0287]
[1751313820571,4.76726888,2510.7,2510.5,0.0287]
[1751313821004,3.9831116,2510.6,2510.5,0.0287]
[1751313821310,4.85813815,2510.6,2510.5,0.0287]
[1751313821611,0.87502655,2510.6,2510.5,0.0287]
[1751313822581,4.85813815,2510.6,2510.5,0.0287]
[1751313824511,11.67213815,2510.6,2510.5,0.0287]
[1751313826309,7.68902655,2510.6,2510.5,0.0287]
[1751313826513,2.39738745,2511.1,2510.5,0.0287]
[1751313826514,4.75207313,2510.9,2510.5,0.0287]
[1751313826712,2.171,2510.7,2510.5,0.0287]
[1751313826891,6.15405786,2510.7,2510.5,0.0287]
[1751313827088,3.9831116,2510.6,2510.5,0.0287]
[1751313827791,4.7524116,2510.6,2510.5,0.0287]
[1751313827993,16.52445855,2510.6,2510.5,0.0287]
[1751313828521,17.07445855,2510.6,2510.5,0.0287]
[1751313829585,3.98402606,2510.1,2509.8,0.1743652]
[1751313829785,4.1832841,2510.0,2509.8,0.1743652]
[1751313830010,3.9840841,2510.0,2509.8,0.1743652]
[1751313830387,3.98422247,2509.9,2509.8,0.1743652]
[1751313830921,3.98415692,2510.0,2509.8,0.1743652]
[1751313831214,3.98422247,2509.9,2509.8,0.1743652]
[1751313831786,3.98414105,2510.0,2509.8,0.1743652]
[1751313832187,4.52332071,2510.0,2509.8,0.1743652]
[1751313832407,0.53917966,2510.0,2509.8,0.1743652]
[1751313832610,4.52324557,2510.0,2509.8,0.1743652]
[1751313832998,3.98422247,2509.9,2509.8,0.1743652]
[1751313833714,4.52332904,2510.0,2509.8,0.1743652]
[1751313833920,0.53917966,2510.0,2509.8,0.1743652]
[1751313834733,3.98422247,2509.9,2509.8,0.1843652]
[1751313835017,12.09322757,2509.9,2509.8,0.1843652]
[1751313835589,22.09322757,2509.9,2509.8,0.1843652]
[1751313837088,22.09322757,2509.9,2509.2,1.17820849]
[1751313837089,22.90492757,2509.9,2509.2,1.17820849]
[1751313837287,0.55,2509.0,2508.8,1.57009738]
[1751313837490,14.53596938,2508.8,2508.3,1.57009738]
[1751313837898,13.98596938,2508.8,2508.3,1.57009738]
[1751313838099,13.98596938,2508.8,2508.4,1.57009738]
[1751313838100,22.98796938,2508.8,2508.4,1.57009738]
[1751313838306,3.98644608,2508.5,2508.4,1.53009738]
[1751313838512,3.98644608,2508.5,2508.2,2.32347657]
[1751313838822,3.98662209,2508.4,2508.0,2.32347657]
[1751313839123,3.98679275,2508.3,2507.9,2.32347657]
[1751313839295,3.98667691,2508.4,2507.9,3.98732071]
[1751313839496,3.98667691,2508.4,2507.9,6.31079728]
[1751313839720,3.98678352,2508.3,2507.9,3.35331784]
[1751313839896,3.98678352,2508.3,2507.8,6.31092232]
[1751313840091,3.98669109,2508.4,2507.9,3.98739591]
[1751313840287,2.172,2508.7,2508.0,3.98716683]
[1751313840493,3.98637186,2508.6,2508.1,3.98704743]
[1751313840892,2.172,2508.7,2507.8,2.32347657]
[1751313841091,2.172,2508.7,2507.9,3.55582423]
[1751313841292,3.98679018,2508.3,2507.8,6.3109857]
[1751313841512,3.98694464,2508.2,2507.8,3.98750913]
[1751313841798,6.84,2508.5,2507.6,2.32347657]
[1751313841988,0.7666,2508.9,2507.9,10.0]
[1751313842208,2.172,2508.9,2508.5,3.98643401]
[1751313842420,2.172,2508.9,2507.9,10.0]
[1751313842421,3.4717772,2508.9,2507.9,19.16447657]
[1751313842610,2.172,2508.9,2508.5,3.98636911]
[1751313843201,2.172,2508.9,2508.1,3.98708185]
[1751313843501,3.98520235,2509.3,2508.8,3.98583034]
[1751313843712,3.98555171,2509.1,2508.6,3.98618177]
[1751313843920,3.98604365,2508.8,2508.3,3.98666284]
[1751313844138,3.9859377,2508.9,2508.3,3.98676394]
[1751313844302,4.75231078,2509.0,2508.4,3.98660112]
[1751313844622,3.98589934,2508.9,2508.4,3.98659981]
[1751313844921,5.91136942,2509.0,2508.5,3.98634879]
[1751313845111,3.98582755,2508.9,2508.4,3.98652896]
[1751313845504,3.98582755,2508.9,2508.5,3.98643366]
[1751313845721,3.98598991,2508.8,2508.3,3.98668566]
[1751313845922,0.1992,2508.7,2508.3,4.18588566]
[1751313846236,0.1992,2508.7,2508.5,3.98643037]
[1751313846448,0.1992,2508.7,2508.4,3.98651789]
[1751313846759,0.1992,2508.7,2508.5,3.98644608]
[1751313846977,0.1992,2508.7,2508.6,3.98628717]
[1751313847114,0.02,2508.9,2508.6,3.98628717]
[1751313847310,0.2192,2508.9,2508.6,3.98628717]
[1751313848068,0.2192,2508.9,2508.6,3.98620938]
[1751313848342,0.2192,2508.9,2508.5,0.1992]
[1751313848545,3.98623206,2508.7,2508.0,10.0]
[1751313848840,0.1992,2508.6,2508.3,3.98675147]
[1751313849164,4.18550135,2508.6,2508.2,4.18608112]
[1751313849368,3.98652038,2508.5,2508.2,0.1992]
[1751313849515,3.98652038,2508.5,2508.1,3.98706928]
[1751313849516,4.18572038,2508.5,2508.1,3.98706928]
[1751313849714,0.1992,2508.5,2508.2,3.98691494]
[1751313849941,0.1992,2508.5,2508.3,3.98669837]
[1751313850543,4.78187305,2508.9,2507.9,3.98737904]
[1751313850544,0.02,2508.9,2507.9,3.98739981]
[1751313850752,0.1992,2508.8,2508.6,3.98620458]
[1751313851647,0.1992,2508.8,2508.5,3.98635146]
[1751313851847,0.1992,2508.8,2508.3,0.1992]
[1751313852084,0.1992,2508.8,2508.6,3.98622101]
[1751313853184,0.1992,2508.8,2508.5,3.98636501]
[1751313853389,0.1992,2508.8,2508.6,3.9862731]
[1751313854573,0.1992,2508.8,2508.5,3.98636743]
[1751313854779,0.1992,2508.8,2508.6,3.98626838]
[1751313856285,0.1992,2508.8,2508.5,3.98635831]
[1751313857700,0.1992,2508.8,2508.2,3.98682065]
[1751313857701,3.98620386,2508.7,2508.2,3.98682065]
[1751313857871,4.74639705,2508.6,2508.2,0.1992]
[1751313858070,4.74639705,2508.6,2508.2,4.18611709]
[1751313858282,0.76,2508.6,2508.2,4.18611709]
[1751313858674,0.1992,2508.7,2508.3,3.98663015]
[1751313858994,0.1992,2508.7,2508.4,3.9865817]
[1751313859497,0.1992,2508.7,2508.5,3.98642846]
[1751313859793,0.1992,2508.7,2508.2,0.1992]
[1751313860101,0.1992,2508.7,2508.3,3.98664785]
[1751313860411,4.1854199,2508.7,2508.2,4.18605065]
[1751313860705,0.1992,2508.7,2508.3,3.98673723]
[1751313860861,4.18533924,2508.7,2508.3,3.98673723]
[1751313861066,3.98636409,2508.6,2508.2,0.1992]
[1751313861295,3.98656299,2508.5,2508.2,0.1992]
[1751313861482,4.18571058,2508.5,2508.0,4.18635695]
[1751313861794,3.98661304,2508.4,2508.0,0.1992]
[1751313862098,4.18610852,2508.3,2507.9,0.1992]
[1751313862664,4.18610852,2508.3,2507.9,4.18658991]
[1751313862871,4.18598987,2508.3,2507.9,4.18658991]
[1751313863362,0.1992,2508.3,2508.0,3.98723595]
[1751313863793,0.1992,2508.3,2507.9,4.1865315]
[1751313864096,0.1992,2508.3,2508.0,3.98723814]
[1751313864303,0.1992,2508.3,2508.1,3.98696257]
[1751313864813,0.1992,2508.3,2508.0,3.98716725]
[1751313865015,0.1992,2508.3,2508.1,3.98708001]
[1751313865167,0.1992,2508.3,2508.2,3.98692289]
[1751313865604,2.3722,2508.5,2508.3,3.98670227]
[1751313866470,2.3722,2508.5,2508.2,3.98679882]
[1751313866788,2.3722,2508.5,2508.1,3.98698785]
[1751313868507,2.3722,2508.5,2508.2,3.98684627]
[1751313868796,2.3722,2508.5,2508.3,3.98675261]
[1751313868997,2.173,2508.5,2508.4,3.986605]
[1751313869500,0.02,2508.9,2508.4,0.81725405]
[1751313869705,0.02,2508.9,2508.6,3.98621388]
[1751313869706,0.2192,2508.9,2508.6,3.98621388]
[1751313869871,0.2192,2508.9,2508.5,3.98635637]
[1751313870070,0.2192,2508.9,2508.6,3.98622843]
[1751313870474,4.20505388,2508.9,2508.4,4.18572921]
[1751313870783,3.98620561,2508.7,2508.2,5.57037473]
[1751313870976,0.1992,2508.7,2508.2,3.65273172]
[1751313871205,0.1992,2508.7,2508.5,3.98632564]
[1751313873507,0.1992,2508.7,2508.4,3.98656458]
[1751313873697,0.75,2508.6,2508.3,3.98669764]
[1751313873893,0.1992,2508.7,2508.4,3.98660401]
[1751313874202,0.1992,2508.7,2508.2,5.76957375]
[1751313874203,0.1992,2508.7,2508.3,3.98666827]
[1751313874393,4.18536496,2508.7,2508.3,3.98666827]
[1751313874592,4.18536496,2508.7,2508.2,5.76958637]
[1751313874977,0.1992,2508.7,2508.3,3.98674206]
[1751313875178,0.1992,2508.7,2508.4,3.98659003]
[1751313876423,0.1992,2508.7,2508.5,3.98644061]
[1751313876628,0.1992,2508.7,2508.4,3.98653274]
[1751313876921,4.18535022,2508.7,2508.3,3.98667943]
[1751313877119,4.18535022,2508.7,2508.2,5.76959232]
[1751313877723,4.18535022,2508.7,2508.5,3.98637362]
[1751313877724,0.1992,2508.7,2508.5,3.98637362]
[1751313878096,0.1992,2508.7,2508.4,3.9865098]
[1751313878290,0.1992,2508.7,2508.5,3.98643629]
[1751313878485,0.1992,2508.7,2508.5,3.98635704]
[1751313879123,0.02,2508.8,2508.6,3.98628717]
[1751313879299,0.02,2508.8,2508.5,4.18555912]
[1751313880314,0.02,2508.8,2508.6,3.98627561]
[1751313880496,0.02,2508.8,2508.5,0.1992]
[1751313880695,0.02,2508.8,2508.5,4.18557364]
[1751313881022,0.02,2508.8,2508.5,4.18554708]
[1751313881221,4.00603378,2508.8,2508.5,0.1992]
[1751313881587,0.02,2508.8,2508.6,3.98627655]
[1751313881791,0.02,2508.8,2508.6,3.98617881]
[1751313882393,0.02,2508.8,2508.7,3.98612827]
[1751313882720,0.02,2508.8,2508.7,11.92756064]
[1751313882918,0.02,2508.8,2508.7,21.92756064]
[1751313883301,0.02,2508.8,2508.7,28.74456064]
[1751313883809,0.02,2508.8,2508.7,21.62027898]
[1751313884201,0.02,2508.8,2508.7,20.80312827]
[1751313890321,0.02,2508.8,2508.7,13.98612827]
[1751313890628,0.02,2508.8,2508.7,10.80012827]
[1751313892029,0.02,2508.8,2508.7,3.98612827]
[1751313892226,0.02,2508.8,2508.7,10.80012827]
[1751313892898,0.02,2508.8,2508.7,10.99932827]
[1751313894134,0.02,2508.8,2508.7,10.99832827]
[1751313895035,0.02,2508.8,2508.7,4.18532827]
[1751313895238,0.02,2508.8,2508.7,10.99832827]
[1751313895416,0.02,2508.8,2508.7,10.79912827]
[1751313895904,0.02,2508.8,2508.7,10.99832827]
[1751313896215,0.02,2508.8,2508.7,0.1992]
[1751313896542,3.98628717,2508.6,2508.5,1.58354741]
[1751313896703,3.98644608,2508.5,2508.4,0.01]
[1751313897121,14.74674608,2508.5,2508.4,0.01]
[1751313899217,0.7603,2508.5,2508.4,0.01]
[1751313899420,0.9595,2508.5,2508.4,0.01]
[1751313900139,0.1992,2508.5,2508.4,0.01]
[1751313900450,0.2192,2508.8,2508.5,3.9863989]
[1751313900615,0.2192,2508.8,2508.4,4.1957277]
[1751313900816,0.2192,2508.8,2508.4,0.2092]
[1751313901011,0.02,2508.8,2508.7,3.98612827]
[1751313901637,0.02,2508.8,2508.7,4.18532827]
[1751313901835,0.02,2508.8,2508.7,5.1210521]
[1751313902135,0.02,2508.8,2508.7,6.30668365]
[1751313903412,0.02,2508.8,2508.7,16.30668365]
[1751313903635,0.02,2508.9,2508.8,13.98596938]
[1751313903837,0.02,2508.9,2508.8,25.6124325]
[1751313904020,0.02,2508.9,2508.8,28.26410987]
[1751313904370,0.02,2508.9,2508.8,37.44007808]
[1751313905051,0.02,2508.9,2508.8,30.62807808]
[1751313905212,0.02,2508.9,2508.8,37.43907808]
[1751313906554,0.02,2508.9,2508.8,37.73499098]
[1751313907122,0.02,2508.9,2508.8,35.37102277]
[1751313907319,0.02,2508.9,2508.8,16.83684675]
[1751313907537,0.02,2508.9,2508.8,18.41108156]
[1751313907960,0.02,2508.9,2508.8,25.22108156]
[1751313908252,0.8474,2509.9,2509.4,3.98500466]
[1751313908454,0.02,2509.9,2509.8,13.98438122]
[1751313908654,0.02,2509.9,2509.8,17.0092]
[1751313908862,0.02,2509.9,2509.8,7.0092]
[1751313909179,0.02,2509.9,2509.8,6.81]
[1751313909474,0.1992,2509.8,2509.5,16.809]
[1751313910034,0.1992,2509.8,2509.5,20.79385501]
[1751313910230,0.1992,2509.8,2509.6,3.9846646]
[1751313910461,0.1992,2509.8,2509.5,16.809]
[1751313911055,0.1992,2509.8,2509.5,20.79384481]
[1751313911355,0.1992,2509.8,2509.6,3.98468378]
[1751313911523,0.1992,2509.8,2509.5,20.79379958]
[1751313911726,0.1992,2509.8,2509.5,16.809]
[1751313912255,0.1992,2509.8,2509.6,3.98460287]
[1751313912648,0.1992,2509.8,2509.5,20.79376257]
[1751313913267,0.1992,2509.8,2509.5,6.809]
[1751313913564,0.02,2509.9,2509.4,6.808]
[1751313913863,0.1992,2509.7,2509.4,10.79294642]
[1751313914867,0.02,2509.9,2509.6,3.98469875]
[1751313915032,0.1992,2509.8,2509.5,3.98478927]
[1751313915454,0.1992,2509.8,2509.4,10.99211288]
[1751313915654,0.1992,2509.8,2509.5,3.98476497]
[1751313916031,0.1992,2509.8,2509.7,3.98453998]
[1751313916229,0.1992,2509.8,2509.5,13.98477187]
[1751313916536,0.1992,2509.8,2509.4,0.1992]
[1751313916734,0.1992,2509.8,2509.5,10.0]
[1751313917364,0.1992,2509.8,2509.4,10.1992]
[1751313917532,0.1992,2509.8,2509.4,0.1992]
[1751313917733,0.8049,2509.6,2509.4,0.1992]
[1751313917932,4.9888421,2509.6,2509.4,1.0]
[1751313918255,4.76635754,2509.5,2509.4,1.0]
[1751313922561,4.76635754,2509.5,2509.4,2.0]
[1751313922740,5.64146638,2509.5,2509.4,2.0]
[1751313925375,0.7815,2509.5,2509.4,2.0]
[1751313925579,4.76635754,2509.5,2509.4,2.0]
[1751313926872,4.76635754,2509.5,2509.4,0.95896755]
[1751313927046,4.76635754,2509.5,2509.4,0.78013287]
[1751313929161,4.76635754,2509.5,2509.4,0.62791609]
[1751313929361,5.64146542,2509.5,2509.4,0.62791609]
[1751313930561,5.64146542,2509.5,2509.4,1.62791609]
[1751313931080,12.44546542,2509.5,2509.4,1.62791609]
[1751313932581,1.65660788,2509.5,2509.4,1.62791609]
[1751313932782,11.57035754,2509.5,2509.4,1.62791609]
[1751313935184,0.02,2509.8,2509.4,1.62791609]
[1751313935385,0.1992,2509.5,2509.4,1.62791609]
[1751313936790,4.00447133,2509.8,2509.4,5.61293242]
[1751313936791,0.02,2509.8,2509.4,5.61293242]
[1751313936994,0.02,2509.8,2509.6,3.98462169]
[1751313937967,0.02,2509.8,2509.7,3.98453998]
[1751313938274,0.02,2509.8,2509.6,3.98455444]
[1751313938462,0.02,2509.8,2509.7,3.98453998]
[1751313938964,0.02,2509.8,2509.5,5.25802847]
[1751313940296,0.02,2509.8,2509.6,3.98469146]
[1751313940692,0.02,2509.8,2509.5,3.98481566]
[1751313941190,0.02,2509.8,2509.6,3.98461488]
[1751313942186,0.02,2509.8,2509.5,3.98477029]
[1751313942369,0.02,2509.8,2509.4,1.82711609]
[1751313942569,0.02,2509.8,2509.5,3.98470867]
[1751313942767,0.02,2509.8,2509.6,3.98463549]
[1751313943187,0.02,2509.8,2509.7,3.98453998]
[1751313943697,0.02,2509.8,2509.6,3.98463309]
[1751313944290,0.02,2509.8,2509.7,3.98453998]
[1751313944803,0.02,2509.8,2509.5,10.0]
[1751313945177,0.02,2509.8,2509.4,11.82711609]
[1751313945393,4.18400651,2509.6,2509.4,1.62791609]
[1751313945605,0.1992,2509.6,2509.4,1.62791609]
[1751313946803,0.1992,2509.6,2509.4,5.6128643]
[1751313947101,0.02,2509.8,2509.5,3.98485754]
[1751313947304,0.2192,2509.8,2509.5,3.98485754]
[1751313947709,0.2192,2509.8,2509.7,3.98453998]
[1751313947908,0.2192,2509.8,2509.5,0.97969044]
[1751313947909,0.2192,2509.8,2509.6,3.98462188]
[1751313948311,0.2192,2509.8,2509.7,3.98453998]
[1751313948478,0.02,2509.8,2509.7,3.98453998]
[1751313950209,0.02,2509.8,2509.7,4.18373998]
[1751313950775,0.02,2510.0,2509.9,3.98422247]
[1751313950978,0.02,2510.0,2509.9,13.98422247]
[1751313951183,0.1984,2510.8,2510.6,3.9831116]
[1751313951383,2.18,2510.9,2510.6,3.9831116]
[1751313951384,2.18,2510.9,2510.6,4.1815116]
[1751313951780,0.02,2510.9,2510.6,4.1815116]
[1751313952021,0.02,2510.9,2510.6,14.1815116]
[1751313952232,0.02,2510.9,2510.6,15.87441713]
[1751313952395,0.02,2510.9,2510.6,22.66941713]
[1751313952796,0.02,2510.9,2510.6,23.84999361]
[1751313953105,0.02,2510.9,2510.6,22.66941713]
[1751313953306,0.02,2510.9,2510.6,23.84919667]
[1751313953687,0.02,2510.9,2510.6,15.87441713]
[1751313953916,0.02,2510.9,2510.6,15.67601713]
[1751313954816,0.02,2510.9,2510.6,11.69290553]
[1751313955024,0.02,2510.9,2510.6,13.9831116]
[1751313957621,0.02,2510.9,2510.6,10.0]
[1751313957822,0.02,2510.9,2510.6,13.9831116]
[1751313958189,0.02,2510.9,2510.6,10.0]
[1751313958390,0.02,2510.9,2510.6,13.9831116]
[1751313958601,0.02,2510.9,2510.6,16.45894742]
[1751313960614,0.02,2511.3,2511.2,13.98215992]
[1751313960924,0.02,2511.3,2511.2,20.77115992]
[1751313961526,0.02,2511.3,2511.2,16.789]
[1751313962448,0.55,2511.2,2510.5,1.17986588]
[1751313962641,1.302,2511.0,2510.1,1.17986588]
[1751313962817,3.9831779,2510.6,2510.3,10.0]
[1751313963206,3.98328467,2510.5,2510.3,10.0]
[1751313963639,3.98352482,2510.4,2510.0,0.19474682]
[1751313963806,3.98352482,2510.4,2510.1,6.787]
[1751313964007,3.98352482,2510.4,2510.2,10.0]
[1751313964305,3.98327178,2510.5,2510.3,6.9854]
[1751313964306,3.98331611,2510.5,2510.3,6.9854]
[1751313964499,3.98342893,2510.4,2510.3,0.1984]
[1751313965354,3.98342893,2510.4,2510.3,2.1984]
[1751313966024,3.98342893,2510.4,2510.3,2.0]
[1751313966225,4.86190933,2510.4,2510.3,2.0]
[1751313967072,5.41190933,2510.4,2510.3,2.0]
[1751313967251,5.61030933,2510.4,2510.3,2.0]
[1751313971967,6.19180933,2510.4,2510.3,2.0]
[1751313973873,15.13580933,2510.4,2510.3,2.0]
[1751313974870,5.41190933,2510.4,2510.3,2.0]
[1751313975048,3.98342893,2510.4,2510.3,2.0]
[1751313975453,3.98329779,2510.5,2510.3,2.0]
[1751313975454,3.98327467,2510.5,2510.3,2.0]
[1751313975654,3.98342893,2510.4,2510.3,2.0]
[1751313976368,4.53342893,2510.4,2510.3,2.0]
[1751313976568,5.38509973,2510.4,2510.3,2.0]
[1751313976769,4.53342893,2510.4,2510.3,4.0]
[1751313977071,4.53342893,2510.4,2510.3,4.01]
[1751313981074,12.09722893,2510.4,2510.3,4.01]
[1751313981974,5.31522893,2510.4,2510.3,4.01]
[1751313982174,14.24922893,2510.4,2510.3,4.01]
[1751313982481,16.07247973,2510.4,2510.3,4.01]
[1751313984744,4.53438122,2509.8,2509.7,2.0]
[1751313984944,24.28588122,2509.8,2509.7,2.0]
[1751313985378,24.28588122,2509.8,2509.7,1.02833312]
[1751313985549,28.19992098,2509.8,2509.7,1.02833312]
[1751313985750,19.26692098,2509.8,2509.7,1.02833312]
[1751313986085,28.19992098,2509.8,2509.7,1.02833312]
[1751313988789,27.64892098,2509.8,2509.7,1.02833312]
[1751313989100,14.28488122,2509.8,2509.7,1.02833312]
[1751313989462,13.73488122,2509.8,2509.7,1.02833312]
[1751313989803,3.98438122,2509.8,2509.7,1.02833312]
[1751313989964,4.53438122,2509.8,2509.7,1.02833312]
[1751313991486,3.98438122,2509.8,2509.7,1.02833312]
[1751313991789,4.53438122,2509.8,2509.7,1.02833312]
[1751313993570,2.153,2510.0,2509.7,1.02833312]
[1751313993772,3.9838521,2510.2,2509.7,5.01278688]